[Event "*** Qualifier 1: Titled Tuesday 3|2 Blitz"]
[Site "Chess.com"]
[Date "2017.04.04"]
[Round "8"]
[White "Titus369"]
[Black "Schemato"]
[Result "0-1"]
[WhiteElo "2183"]
[BlackElo "2247"]
[TimeControl "180+2"]
[EndTime "14:52:55 PDT"]
[Termination "Schemato won by checkmate"]

1. e4 {[%clk 0:03:02]} 1... c5 {[%clk 0:02:59.1]} 2. Nf3 {[%clk 0:03:02.3]} 2...
e6 {[%clk 0:02:59.2]} 3. d4 {[%clk 0:03:03.2]} 3... cxd4 {[%clk 0:02:59.5]} 4.
Nxd4 {[%clk 0:03:05.1]} 4... Nc6 {[%clk 0:03:00.6]} 5. Nc3 {[%clk 0:03:02.3]}
5... Qc7 {[%clk 0:03:01.3]} 6. Be3 {[%clk 0:02:58.2]} 6... a6 {[%clk 0:03:02.1]}
7. g3 {[%clk 0:02:55.1]} 7... d6 {[%clk 0:03:00.7]} 8. Bg2 {[%clk 0:02:55.7]}
8... Bd7 {[%clk 0:03:01.9]} 9. O-O {[%clk 0:02:56.2]} 9... Be7 {[%clk 0:03:03]}
10. f4 {[%clk 0:02:53.6]} 10... Nf6 {[%clk 0:02:58.5]} 11. Qe2 {[%clk
0:02:52.4]} 11... O-O {[%clk 0:02:48.1]} 12. Rad1 {[%clk 0:02:42.8]} 12... Rac8
{[%clk 0:02:43.6]} 13. f5 {[%clk 0:02:27.3]} 13... Ne5 {[%clk 0:02:24.1]} 14.
fxe6 {[%clk 0:02:21.2]} 14... fxe6 {[%clk 0:02:24.8]} 15. Bh3 {[%clk 0:02:16]}
15... Kh8 {[%clk 0:01:50.3]} 16. Bxe6 {[%clk 0:02:12.2]} 16... b5 {[%clk
0:01:43]} 17. Bxd7 {[%clk 0:02:09.1]} 17... Qxd7 {[%clk 0:01:43.2]} 18. Nf5
{[%clk 0:02:01.3]} 18... Qc7 {[%clk 0:01:31.3]} 19. Nxe7 {[%clk 0:01:57.9]}
19... Qxe7 {[%clk 0:01:31.6]} 20. Bg5 {[%clk 0:01:48.5]} 20... Qe6 {[%clk
0:01:22.6]} 21. Nd5 {[%clk 0:01:33.7]} 21... Nxd5 {[%clk 0:01:21.3]} 22. Rxf8+
{[%clk 0:01:27.2]} 22... Rxf8 {[%clk 0:01:20.4]} 23. exd5 {[%clk 0:01:26.8]}
23... Qg6 {[%clk 0:01:05.7]} 24. Bf4 {[%clk 0:01:22.9]} 24... Re8 {[%clk
0:01:01]} 25. c3 {[%clk 0:01:08.5]} 25... Nc4 {[%clk 0:00:57.3]} 26. Qf2 {[%clk
0:01:03]} 26... h6 {[%clk 0:00:48.8]} 27. b3 {[%clk 0:00:57.7]} 27... Ne5 {[%clk
0:00:48.7]} 28. Bxe5 {[%clk 0:00:36.6]} 28... Rxe5 {[%clk 0:00:47.1]} 29. c4
{[%clk 0:00:36.2]} 29... bxc4 {[%clk 0:00:46.1]} 30. bxc4 {[%clk 0:00:38.1]}
30... Qe4 {[%clk 0:00:38.4]} 31. Qd4 {[%clk 0:00:35]} 31... Qe2 {[%clk
0:00:30.4]} 32. a3 {[%clk 0:00:16.6]} 32... Re4 {[%clk 0:00:30.9]} 33. Qd3
{[%clk 0:00:15.9]} 33... Qxd3 {[%clk 0:00:29.5]} 34. Rxd3 {[%clk 0:00:17.8]}
34... Rxc4 {[%clk 0:00:30.9]} 35. h4 {[%clk 0:00:17.7]} 35... Kg8 {[%clk
0:00:30.3]} 36. Kf2 {[%clk 0:00:18.9]} 36... Kf7 {[%clk 0:00:30.7]} 37. Ke3
{[%clk 0:00:18.6]} 37... Kf6 {[%clk 0:00:31.4]} 38. Rd4 {[%clk 0:00:19.1]} 38...
Rc3+ {[%clk 0:00:31.6]} 39. Rd3 {[%clk 0:00:18.6]} 39... Rxd3+ {[%clk 0:00:21]}
40. Kxd3 {[%clk 0:00:19.8]} 40... Ke5 {[%clk 0:00:22.6]} 41. Kc4 {[%clk
0:00:21.2]} 41... h5 {[%clk 0:00:24]} 42. a4 {[%clk 0:00:21.5]} 42... a5 {[%clk
0:00:23.4]} 43. Kb5 {[%clk 0:00:20.3]} 43... Kxd5 {[%clk 0:00:24.4]} 44. Kxa5
{[%clk 0:00:22.2]} 44... Kc5 {[%clk 0:00:24.6]} 45. Ka6 {[%clk 0:00:23.3]} 45...
d5 {[%clk 0:00:23.4]} 46. a5 {[%clk 0:00:23.2]} 46... Kc6 {[%clk 0:00:18.7]} 47.
Ka7 {[%clk 0:00:24.2]} 47... Kc7 {[%clk 0:00:17.8]} 48. Ka6 {[%clk 0:00:16.4]}
48... d4 {[%clk 0:00:17.9]} 49. Ka7 {[%clk 0:00:17.3]} 49... d3 {[%clk
0:00:18.9]} 50. a6 {[%clk 0:00:19.2]} 50... d2 {[%clk 0:00:19.7]} 51. g4 {[%clk
0:00:21.1]} 51... hxg4 {[%clk 0:00:18.2]} 52. h5 {[%clk 0:00:21.9]} 52... d1=Q
{[%clk 0:00:19.1]} 53. h6 {[%clk 0:00:23.8]} 53... Qd4+ {[%clk 0:00:19.3]} 54.
Ka8 {[%clk 0:00:24.9]} 54... Qd8+ {[%clk 0:00:19.7]} 55. Ka7 {[%clk 0:00:25.9]}
55... Qb8# {[%clk 0:00:20.7]} 0-1

[Event "*** Qualifier 1: Titled Tuesday 3|2 Blitz"]
[Site "Chess.com"]
[Date "2017.04.04"]
[Round "8"]
[White "Tirantes"]
[Black "iaraldinho"]
[Result "0-1"]
[WhiteElo "2198"]
[BlackElo "2387"]
[TimeControl "180+2"]
[EndTime "14:52:59 PDT"]
[Termination "iaraldinho won by resignation"]

1. e4 {[%clk 0:02:48.6]} 1... c5 {[%clk 0:03:00.8]} 2. Nf3 {[%clk 0:02:47.8]}
2... a6 {[%clk 0:03:01.8]} 3. c3 {[%clk 0:02:47]} 3... d5 {[%clk 0:03:02.1]} 4.
e5 {[%clk 0:02:45.3]} 4... Nc6 {[%clk 0:03:02.2]} 5. d4 {[%clk 0:02:45.5]} 5...
Bg4 {[%clk 0:03:02.8]} 6. Be2 {[%clk 0:02:42.7]} 6... e6 {[%clk 0:03:03.4]} 7.
O-O {[%clk 0:02:39.8]} 7... Bxf3 {[%clk 0:02:56.9]} 8. Bxf3 {[%clk 0:02:40]}
8... Qb6 {[%clk 0:02:58.1]} 9. dxc5 {[%clk 0:02:37.2]} 9... Bxc5 {[%clk
0:02:58.9]} 10. b4 {[%clk 0:02:36.4]} 10... Be7 {[%clk 0:02:57.8]} 11. Bf4
{[%clk 0:02:29.9]} 11... Nh6 {[%clk 0:02:51.3]} 12. Nd2 {[%clk 0:02:25.8]} 12...
Nf5 {[%clk 0:02:36.9]} 13. a3 {[%clk 0:02:24.1]} 13... g5 {[%clk 0:02:35.6]} 14.
Bg3 {[%clk 0:02:08.3]} 14... Nxg3 {[%clk 0:02:36.5]} 15. hxg3 {[%clk 0:02:08.3]}
15... Nxe5 {[%clk 0:02:38]} 16. Bh5 {[%clk 0:02:03.9]} 16... O-O {[%clk
0:02:33]} 17. Qe2 {[%clk 0:02:01.8]} 17... Bf6 {[%clk 0:02:32.7]} 18. Kh1 {[%clk
0:01:56.7]} 18... Rac8 {[%clk 0:02:32.9]} 19. f4 {[%clk 0:01:52.8]} 19... Ng6
{[%clk 0:02:27.3]} 20. f5 {[%clk 0:01:43.6]} 20... exf5 {[%clk 0:02:25.8]} 21.
Rxf5 {[%clk 0:01:41.2]} 21... Bxc3 {[%clk 0:02:26.4]} 22. Raf1 {[%clk
0:01:36.5]} 22... Rce8 {[%clk 0:01:59.8]} 23. Qd1 {[%clk 0:01:32.4]} 23... Qd4
{[%clk 0:01:44.8]} 24. Nf3 {[%clk 0:01:19.2]} 24... Qxd1 {[%clk 0:01:45.2]} 25.
Rxd1 {[%clk 0:01:20.1]} 25... d4 {[%clk 0:01:31.1]} 26. Nxg5 {[%clk 0:01:13.5]}
26... Rd8 {[%clk 0:01:20.3]} 27. Be2 {[%clk 0:01:00.1]} 27... b5 {[%clk
0:00:57]} 28. Bd3 {[%clk 0:00:50.8]} 28... Kg7 {[%clk 0:00:53.7]} 29. Rdf1
{[%clk 0:00:46.9]} 29... Rd7 {[%clk 0:00:53]} 30. Ne4 {[%clk 0:00:41]} 30... Re7
{[%clk 0:00:47.7]} 31. Nxc3 {[%clk 0:00:36.8]} 31... dxc3 {[%clk 0:00:48.6]} 32.
Rc1 {[%clk 0:00:25.3]} 32... Re3 {[%clk 0:00:47.3]} 33. Rxc3 {[%clk 0:00:20.3]}
33... Ne5 {[%clk 0:00:44.3]} 34. Rxe5 {[%clk 0:00:16.2]} 34... Rxe5 {[%clk
0:00:44.6]} 35. Bc2 {[%clk 0:00:15.7]} 35... Rd8 {[%clk 0:00:40.5]} 36. Kh2
{[%clk 0:00:13.8]} 36... Rh5+ {[%clk 0:00:33.1]} 37. Kg1 {[%clk 0:00:13.7]}
37... Rd2 {[%clk 0:00:34.6]} 38. Bb3 {[%clk 0:00:13.2]} 38... Rf5 {[%clk
0:00:31.7]} 39. Rc7 {[%clk 0:00:10.6]} 39... Rff2 {[%clk 0:00:30.1]} 40. Kh1
{[%clk 0:00:10.6]} 40... h5 {[%clk 0:00:27.1]} 41. Re7 {[%clk 0:00:10.6]} 41...
Rxg2 {[%clk 0:00:20.6]} 42. Rxf7+ {[%clk 0:00:10.8]} 42... Kg6 {[%clk
0:00:22.2]} 43. Re7 {[%clk 0:00:08.7]} 43... Rge2 {[%clk 0:00:21.6]} 44. Rxe2
{[%clk 0:00:08.2]} 44... Rxe2 {[%clk 0:00:23]} 45. Bd5 {[%clk 0:00:09.2]} 45...
Re3 {[%clk 0:00:22.7]} 46. Kg2 {[%clk 0:00:08.7]} 46... Rxa3 {[%clk 0:00:23.5]}
47. Bb7 {[%clk 0:00:09.5]} 47... Ra4 {[%clk 0:00:24.8]} 48. Kh3 {[%clk
0:00:09.5]} 48... Rxb4 {[%clk 0:00:26.7]} 49. Bxa6 {[%clk 0:00:10.6]} 49... Rb2
{[%clk 0:00:27.7]} 50. Bb7 {[%clk 0:00:09.9]} 50... Kg5 {[%clk 0:00:29.1]} 51.
Bd5 {[%clk 0:00:10.4]} 51... b4 {[%clk 0:00:30.6]} 52. Bc4 {[%clk 0:00:11.1]}
52... b3 {[%clk 0:00:32]} 53. Bd5 {[%clk 0:00:12]} 53... Rb1 {[%clk 0:00:33.4]}
54. Bc4 {[%clk 0:00:11.6]} 54... b2 {[%clk 0:00:34.4]} 55. Bd3 {[%clk
0:00:10.9]} 55... Rh1+ {[%clk 0:00:34.9]} 56. Kg2 {[%clk 0:00:11.1]} 56... b1=Q
{[%clk 0:00:36.5]} 0-1

[Event "*** Qualifier 1: Titled Tuesday 3|2 Blitz"]
[Site "Chess.com"]
[Date "2017.04.04"]
[Round "8"]
[White "Bengalas"]
[Black "TheNextLevelFan"]
[Result "1-0"]
[WhiteElo "2454"]
[BlackElo "2374"]
[TimeControl "180+2"]
[EndTime "14:53:03 PDT"]
[Termination "Bengalas won by resignation"]

1. d4 {[%clk 0:03:02]} 1... Nf6 {[%clk 0:03:00.5]} 2. c4 {[%clk 0:03:01.6]} 2...
e6 {[%clk 0:03:01.9]} 3. Nc3 {[%clk 0:03:00.6]} 3... d5 {[%clk 0:03:02.4]} 4.
cxd5 {[%clk 0:03:00.9]} 4... exd5 {[%clk 0:03:03.3]} 5. Bg5 {[%clk 0:03:01.1]}
5... Be7 {[%clk 0:03:03.4]} 6. e3 {[%clk 0:03:01.5]} 6... O-O {[%clk 0:03:03.9]}
7. Bd3 {[%clk 0:03:02.2]} 7... Re8 {[%clk 0:02:58.7]} 8. Qc2 {[%clk 0:02:46]}
8... h6 {[%clk 0:02:57.6]} 9. Bh4 {[%clk 0:02:46.2]} 9... c5 {[%clk 0:02:55.4]}
10. Nf3 {[%clk 0:02:35.1]} 10... Nc6 {[%clk 0:02:54.3]} 11. dxc5 {[%clk
0:02:01.7]} 11... d4 {[%clk 0:02:50.6]} 12. exd4 {[%clk 0:01:48.1]} 12... Bxc5+
{[%clk 0:02:43.7]} 13. Ne2 {[%clk 0:01:43.3]} 13... Nb4 {[%clk 0:02:39.8]} 14.
Qd2 {[%clk 0:01:30.3]} 14... Nxd3+ {[%clk 0:02:21.4]} 15. Qxd3 {[%clk
0:01:30.4]} 15... Bb4+ {[%clk 0:02:22.5]} 16. Kf1 {[%clk 0:01:30.8]} 16... Be6
{[%clk 0:01:21]} 17. Nc3 {[%clk 0:01:22.1]} 17... Rc8 {[%clk 0:01:19.7]} 18. Kg1
{[%clk 0:01:23.4]} 18... Bc4 {[%clk 0:01:15.1]} 19. Qd1 {[%clk 0:01:13.8]} 19...
Bxc3 {[%clk 0:01:12.2]} 20. bxc3 {[%clk 0:01:14.1]} 20... Be2 {[%clk 0:01:13.8]}
21. Qb3 {[%clk 0:01:14.8]} 21... Bxf3 {[%clk 0:01:13.9]} 22. gxf3 {[%clk
0:01:15.6]} 22... g5 {[%clk 0:00:59.1]} 23. Bg3 {[%clk 0:01:16.4]} 23... Nd5
{[%clk 0:00:59.1]} 24. c4 {[%clk 0:01:06.4]} 24... Nb6 {[%clk 0:00:59.4]} 25. d5
{[%clk 0:00:48.8]} 25... Rxc4 {[%clk 0:00:55.3]} 26. Rd1 {[%clk 0:00:44.9]}
26... Qf6 {[%clk 0:00:51.5]} 27. h4 {[%clk 0:00:37.4]} 27... Rc3 {[%clk
0:00:38.9]} 28. hxg5 {[%clk 0:00:29.7]} 28... Qxf3 {[%clk 0:00:39.9]} 29. Qb1
{[%clk 0:00:29.9]} 29... Re4 {[%clk 0:00:23.4]} 30. gxh6 {[%clk 0:00:22.4]}
30... Rg4 {[%clk 0:00:24.5]} 31. h7+ {[%clk 0:00:23]} 31... Kh8 {[%clk
0:00:25.2]} 32. Rh3 {[%clk 0:00:21.8]} 32... Nxd5 {[%clk 0:00:23.1]} 33. Re1
{[%clk 0:00:19]} 33... Ne3 {[%clk 0:00:19.5]} 34. Rxe3 {[%clk 0:00:13.3]} 34...
Rxe3 {[%clk 0:00:20.7]} 35. Qc1 {[%clk 0:00:11.8]} 35... Re8 {[%clk 0:00:08.6]}
36. Qb2+ {[%clk 0:00:12.4]} 36... f6 {[%clk 0:00:09.6]} 37. Qc1 {[%clk
0:00:11.6]} 37... Rd8 {[%clk 0:00:09.7]} 38. Kh2 {[%clk 0:00:10.9]} 38... Qf5
{[%clk 0:00:08.4]} 39. Qe3 {[%clk 0:00:10.2]} 39... Rg7 {[%clk 0:00:09.1]} 40.
Rh6 {[%clk 0:00:10.5]} 40... Rxh7 {[%clk 0:00:09.6]} 41. Rxh7+ {[%clk 0:00:12]}
41... Kxh7 {[%clk 0:00:11.5]} 42. Qxa7 {[%clk 0:00:11.7]} 42... Kg6 {[%clk
0:00:12.6]} 43. Qxb7 {[%clk 0:00:12]} 43... Rd1 {[%clk 0:00:10.7]} 44. Kg2
{[%clk 0:00:11.9]} 44... Qh5 {[%clk 0:00:09.2]} 45. Qe4+ {[%clk 0:00:12.2]}
45... Kg7 {[%clk 0:00:10.7]} 46. Qe7+ {[%clk 0:00:12.8]} 46... Kg6 {[%clk
0:00:11.7]} 47. Qe4+ {[%clk 0:00:13.6]} 47... Kh6 {[%clk 0:00:12.1]} 48. Bf4+
{[%clk 0:00:13.6]} 48... Kg7 {[%clk 0:00:12.4]} 49. Qe7+ {[%clk 0:00:14]} 49...
Kg6 {[%clk 0:00:13.9]} 50. Qe8+ {[%clk 0:00:13.9]} 50... Kg7 {[%clk 0:00:11]}
51. Qxh5 {[%clk 0:00:14.9]} 1-0

[Event "*** Qualifier 1: Titled Tuesday 3|2 Blitz"]
[Site "Chess.com"]
[Date "2017.04.04"]
[Round "8"]
[White "stefanodinn"]
[Black "hypert"]
[Result "1-0"]
[WhiteElo "2207"]
[BlackElo "2247"]
[TimeControl "180+2"]
[EndTime "14:53:05 PDT"]
[Termination "stefanodinn won on time"]

1. Nf3 {[%clk 0:03:01.1]} 1... g6 {[%clk 0:03:02]} 2. c4 {[%clk 0:02:58.2]} 2...
Bg7 {[%clk 0:03:03.2]} 3. Nc3 {[%clk 0:02:55.7]} 3... c5 {[%clk 0:03:04]} 4. e3
{[%clk 0:02:50.4]} 4... Nc6 {[%clk 0:03:05.3]} 5. d4 {[%clk 0:02:50.1]} 5...
cxd4 {[%clk 0:03:05.2]} 6. exd4 {[%clk 0:02:51.1]} 6... d6 {[%clk 0:03:06.8]} 7.
h3 {[%clk 0:02:26.6]} 7... Nf6 {[%clk 0:03:06]} 8. Bd3 {[%clk 0:02:25.5]} 8...
O-O {[%clk 0:03:05.8]} 9. O-O {[%clk 0:02:24.5]} 9... e5 {[%clk 0:03:03.8]} 10.
d5 {[%clk 0:02:06.8]} 10... Ne7 {[%clk 0:03:02.2]} 11. Re1 {[%clk 0:01:58.2]}
11... Nd7 {[%clk 0:03:02.6]} 12. Bc2 {[%clk 0:01:36.6]} 12... a5 {[%clk
0:03:03]} 13. b3 {[%clk 0:01:31]} 13... f5 {[%clk 0:03:03.1]} 14. Ba3 {[%clk
0:01:10.8]} 14... Nc5 {[%clk 0:02:59.6]} 15. Bxc5 {[%clk 0:01:09.1]} 15... dxc5
{[%clk 0:03:01.5]} 16. Nxe5 {[%clk 0:01:09.9]} 16... Kh8 {[%clk 0:02:56.8]} 17.
f4 {[%clk 0:01:10]} 17... Bd7 {[%clk 0:02:55.7]} 18. Qd2 {[%clk 0:01:01.2]}
18... Nc8 {[%clk 0:02:56.3]} 19. Rad1 {[%clk 0:00:49.3]} 19... Nd6 {[%clk
0:02:55.2]} 20. a4 {[%clk 0:00:48.9]} 20... b6 {[%clk 0:02:54.3]} 21. Nb5 {[%clk
0:00:37.8]} 21... Bxb5 {[%clk 0:02:53.5]} 22. cxb5 {[%clk 0:00:35.8]} 22... Qh4
{[%clk 0:02:51.8]} 23. Qf2 {[%clk 0:00:32.4]} 23... Qh5 {[%clk 0:02:45.3]} 24.
Bd3 {[%clk 0:00:23.9]} 24... Rfe8 {[%clk 0:02:45.7]} 25. Kh2 {[%clk 0:00:21.4]}
25... Bf6 {[%clk 0:02:41.3]} 26. Nc6 {[%clk 0:00:20.4]} 26... Qh6 {[%clk
0:02:32.4]} 27. g3 {[%clk 0:00:20.3]} 27... Qg7 {[%clk 0:02:31.4]} 28. Rxe8+
{[%clk 0:00:20.5]} 28... Rxe8 {[%clk 0:02:31.5]} 29. Re1 {[%clk 0:00:22.1]}
29... Qf7 {[%clk 0:02:22.1]} 30. Rxe8+ {[%clk 0:00:19.2]} 30... Qxe8 {[%clk
0:02:24]} 31. Qe2 {[%clk 0:00:17.4]} 31... Kg7 {[%clk 0:02:13]} 32. Qxe8 {[%clk
0:00:15.5]} 32... Nxe8 {[%clk 0:02:14.9]} 33. Kg2 {[%clk 0:00:15.4]} 33... Nd6
{[%clk 0:02:15.7]} 34. Kf3 {[%clk 0:00:16.4]} 34... Kf7 {[%clk 0:02:17.2]} 35.
g4 {[%clk 0:00:16.4]} 35... fxg4+ {[%clk 0:02:15.7]} 36. hxg4 {[%clk 0:00:16.7]}
36... h6 {[%clk 0:02:15.9]} 37. Ne5+ {[%clk 0:00:14.8]} 37... Bxe5 {[%clk
0:02:13.5]} 38. fxe5 {[%clk 0:00:15.8]} 38... Ne8 {[%clk 0:02:15.1]} 39. Bc4
{[%clk 0:00:14.2]} 39... Ng7 {[%clk 0:02:15.7]} 40. Ke4 {[%clk 0:00:14]} 40...
Ke7 {[%clk 0:02:16.7]} 41. d6+ {[%clk 0:00:12.8]} 41... Kd7 {[%clk 0:02:17.9]}
42. Bf7 {[%clk 0:00:13.4]} 42... h5 {[%clk 0:02:17.7]} 43. gxh5 {[%clk
0:00:11.8]} 43... gxh5 {[%clk 0:02:17.6]} 44. Kd5 {[%clk 0:00:12.5]} 44... h4
{[%clk 0:02:17.8]} 45. e6+ {[%clk 0:00:13.5]} 45... Kd8 {[%clk 0:02:19]} 46. Kc6
{[%clk 0:00:11.4]} 46... h3 {[%clk 0:02:17.5]} 47. e7+ {[%clk 0:00:12.2]} 47...
Kc8 {[%clk 0:02:19]} 48. d7+ {[%clk 0:00:13.1]} 48... Kb8 {[%clk 0:02:20.3]} 49.
d8=Q+ {[%clk 0:00:12.6]} 1-0

[Event "*** Qualifier 1: Titled Tuesday 3|2 Blitz"]
[Site "Chess.com"]
[Date "2017.04.04"]
[Round "8"]
[White "michaelk123"]
[Black "Bugcrusher"]
[Result "1-0"]
[WhiteElo "2244"]
[BlackElo "2449"]
[TimeControl "180+2"]
[EndTime "14:53:27 PDT"]
[Termination "michaelk123 won by resignation"]

1. e4 {[%clk 0:03:02]} 1... e6 {[%clk 0:02:59.5]} 2. d4 {[%clk 0:03:02.2]} 2...
d5 {[%clk 0:03:00.1]} 3. Nd2 {[%clk 0:03:03.8]} 3... Be7 {[%clk 0:03:00.7]} 4.
e5 {[%clk 0:03:02.8]} 4... c5 {[%clk 0:02:57.2]} 5. Qg4 {[%clk 0:03:03.1]} 5...
Kf8 {[%clk 0:02:57.6]} 6. Ndf3 {[%clk 0:02:51.9]} 6... cxd4 {[%clk 0:02:35.4]}
7. a3 {[%clk 0:02:49.4]} 7... Qc7 {[%clk 0:02:32.1]} 8. Bd3 {[%clk 0:02:49.1]}
8... Nd7 {[%clk 0:02:26.9]} 9. Qg3 {[%clk 0:02:44]} 9... Nh6 {[%clk 0:02:12.5]}
10. Ne2 {[%clk 0:02:36.1]} 10... Nc5 {[%clk 0:02:03.5]} 11. Nexd4 {[%clk
0:02:29.6]} 11... Nf5 {[%clk 0:01:55.9]} 12. Nxf5 {[%clk 0:02:08.7]} 12... exf5
{[%clk 0:01:42.4]} 13. O-O {[%clk 0:02:09.2]} 13... Ne4 {[%clk 0:01:42.2]} 14.
Qf4 {[%clk 0:02:01.5]} 14... g5 {[%clk 0:01:40.6]} 15. Qe3 {[%clk 0:01:54.6]}
15... f4 {[%clk 0:01:38.1]} 16. Qd4 {[%clk 0:01:44.3]} 16... Qc5 {[%clk
0:01:05.1]} 17. c3 {[%clk 0:01:20.8]} 17... Be6 {[%clk 0:00:52.8]} 18. Ne1
{[%clk 0:01:09.5]} 18... Qxd4 {[%clk 0:00:49.3]} 19. cxd4 {[%clk 0:01:10.1]}
19... Rc8 {[%clk 0:00:36.7]} 20. f3 {[%clk 0:00:59]} 20... Rxc1 {[%clk 0:00:33]}
21. Rxc1 {[%clk 0:01:00.4]} 21... Nd2 {[%clk 0:00:34.1]} 22. Rf2 {[%clk
0:01:00.2]} 22... Nb3 {[%clk 0:00:34.8]} 23. Rc7 {[%clk 0:00:52.3]} 23... Nxd4
{[%clk 0:00:35.6]} 24. b4 {[%clk 0:00:43]} 24... Nc6 {[%clk 0:00:33.8]} 25. Rxb7
{[%clk 0:00:34.2]} 25... Nxe5 {[%clk 0:00:30.4]} 26. Rxa7 {[%clk 0:00:30]} 26...
Bf6 {[%clk 0:00:16.2]} 27. Ra8+ {[%clk 0:00:26.6]} 27... Ke7 {[%clk 0:00:17.3]}
28. Rxh8 {[%clk 0:00:26.8]} 28... Bxh8 {[%clk 0:00:18.5]} 29. Rc2 {[%clk
0:00:26.1]} 29... Kd6 {[%clk 0:00:17.3]} 30. b5 {[%clk 0:00:26.1]} 30... Nc4
{[%clk 0:00:16.9]} 31. a4 {[%clk 0:00:23.2]} 31... Bd4+ {[%clk 0:00:17.2]} 32.
Kh1 {[%clk 0:00:17.8]} 32... Kc5 {[%clk 0:00:18.4]} 33. h3 {[%clk 0:00:11.5]}
33... h5 {[%clk 0:00:18.8]} 34. Kh2 {[%clk 0:00:08.2]} 34... Kb6 {[%clk
0:00:17.3]} 35. Be2 {[%clk 0:00:07.6]} 35... Ka5 {[%clk 0:00:13]} 36. Nd3 {[%clk
0:00:08.6]} 36... Kxa4 {[%clk 0:00:10.4]} 37. b6 {[%clk 0:00:08]} 37... Nxb6
{[%clk 0:00:10.4]} 38. Nc5+ {[%clk 0:00:08.9]} 38... Bxc5 {[%clk 0:00:09.1]} 39.
Rxc5 {[%clk 0:00:10.7]} 39... Nc4 {[%clk 0:00:09]} 40. Bxc4 {[%clk 0:00:09.2]}
40... dxc4 {[%clk 0:00:09.7]} 41. Rxg5 {[%clk 0:00:10.6]} 41... Kb3 {[%clk
0:00:10.3]} 42. Rxh5 {[%clk 0:00:11.4]} 42... c3 {[%clk 0:00:11.6]} 43. Rb5+
{[%clk 0:00:10.6]} 43... Ka3 {[%clk 0:00:10.3]} 44. Rc5 {[%clk 0:00:11.6]} 44...
Kb2 {[%clk 0:00:11]} 45. h4 {[%clk 0:00:11.5]} 45... c2 {[%clk 0:00:12]} 46. h5
{[%clk 0:00:12.3]} 46... c1=Q {[%clk 0:00:12.2]} 47. Rxc1 {[%clk 0:00:13.1]}
47... Kxc1 {[%clk 0:00:14.1]} 48. g3 {[%clk 0:00:12.4]} 48... Kd2 {[%clk
0:00:13.7]} 49. g4 {[%clk 0:00:13.4]} 49... Ke3 {[%clk 0:00:13.9]} 50. h6 {[%clk
0:00:14.5]} 50... f5 {[%clk 0:00:13.3]} 51. h7 {[%clk 0:00:15.4]} 51... fxg4
{[%clk 0:00:14.7]} 52. fxg4 {[%clk 0:00:15.9]} 52... Bxg4 {[%clk 0:00:15.9]} 53.
h8=Q {[%clk 0:00:16.7]} 53... Bf5 {[%clk 0:00:17.4]} 54. Qe5+ {[%clk 0:00:17.2]}
54... Be4 {[%clk 0:00:18.6]} 55. Kg1 {[%clk 0:00:17.4]} 55... f3 {[%clk
0:00:19.4]} 56. Qc5+ {[%clk 0:00:16.3]} 56... Ke2 {[%clk 0:00:20.1]} 57. Qf2+
{[%clk 0:00:17.5]} 57... Kd3 {[%clk 0:00:21.2]} 58. Kh2 {[%clk 0:00:18.9]} 1-0

[Event "*** Qualifier 1: Titled Tuesday 3|2 Blitz"]
[Site "Chess.com"]
[Date "2017.04.04"]
[Round "8"]
[White "donotreadit"]
[Black "evgenyermolaev"]
[Result "1-0"]
[WhiteElo "2487"]
[BlackElo "2363"]
[TimeControl "180+2"]
[EndTime "14:53:35 PDT"]
[Termination "donotreadit won by checkmate"]

1. d4 {[%clk 0:03:02]} 1... Nf6 {[%clk 0:03:00.9]} 2. Nf3 {[%clk 0:03:03.2]}
2... c5 {[%clk 0:03:01.7]} 3. d5 {[%clk 0:03:03.9]} 3... b5 {[%clk 0:03:01.8]}
4. a4 {[%clk 0:03:02.8]} 4... b4 {[%clk 0:03:01.7]} 5. Bg5 {[%clk 0:03:00.1]}
5... Qb6 {[%clk 0:02:57.2]} 6. Nbd2 {[%clk 0:02:59.3]} 6... Nxd5 {[%clk
0:02:46]} 7. Nc4 {[%clk 0:02:55.6]} 7... Qe6 {[%clk 0:02:46]} 8. e3 {[%clk
0:02:53]} 8... Nb6 {[%clk 0:02:44]} 9. b3 {[%clk 0:02:44.1]} 9... Ba6 {[%clk
0:02:39]} 10. Nfd2 {[%clk 0:02:39.3]} 10... d5 {[%clk 0:02:37.2]} 11. Nxb6
{[%clk 0:02:27.2]} 11... axb6 {[%clk 0:02:38.1]} 12. Bxa6 {[%clk 0:02:28.2]}
12... Nxa6 {[%clk 0:02:38.6]} 13. O-O {[%clk 0:02:29.7]} 13... g6 {[%clk
0:02:36.6]} 14. e4 {[%clk 0:02:28.8]} 14... Bg7 {[%clk 0:02:32.3]} 15. exd5
{[%clk 0:02:23.3]} 15... Qxd5 {[%clk 0:02:32.9]} 16. Be3 {[%clk 0:01:35.5]}
16... O-O {[%clk 0:02:18.3]} 17. Rb1 {[%clk 0:01:34.7]} 17... Rfd8 {[%clk
0:02:07.3]} 18. Qe2 {[%clk 0:01:36.1]} 18... Nc7 {[%clk 0:02:03.8]} 19. h3
{[%clk 0:01:31.2]} 19... Qc6 {[%clk 0:01:58.6]} 20. Rbe1 {[%clk 0:01:28.9]}
20... b5 {[%clk 0:01:56.9]} 21. axb5 {[%clk 0:01:28.9]} 21... Nxb5 {[%clk
0:01:57.7]} 22. Nc4 {[%clk 0:01:30.4]} 22... e6 {[%clk 0:01:37.1]} 23. Qg4
{[%clk 0:01:30.2]} 23... h5 {[%clk 0:01:28.8]} 24. Qg5 {[%clk 0:01:30.3]} 24...
Rd5 {[%clk 0:01:25.7]} 25. Qg3 {[%clk 0:01:31.4]} 25... Bc3 {[%clk 0:01:19.7]}
26. Rb1 {[%clk 0:01:26.5]} 26... Na3 {[%clk 0:01:17.8]} 27. Rbd1 {[%clk
0:01:14.1]} 27... Nxc2 {[%clk 0:01:14.1]} 28. Rc1 {[%clk 0:01:04.1]} 28... Nd4
{[%clk 0:00:49.1]} 29. Bxd4 {[%clk 0:01:03.3]} 29... Bxd4 {[%clk 0:00:50.2]} 30.
Kh1 {[%clk 0:01:01.8]} 30... Ra2 {[%clk 0:00:44.5]} 31. Rce1 {[%clk 0:01:00.4]}
31... Rc2 {[%clk 0:00:38]} 32. Re4 {[%clk 0:00:42.6]} 32... Rc3 {[%clk
0:00:18.1]} 33. Qb8+ {[%clk 0:00:43.2]} 33... Kg7 {[%clk 0:00:17.6]} 34. Rf4
{[%clk 0:00:44.7]} 34... Rd7 {[%clk 0:00:13.4]} 35. Kg1 {[%clk 0:00:37.1]} 35...
Qc7 {[%clk 0:00:10.1]} 36. Qxc7 {[%clk 0:00:33.1]} 36... Rxc7 {[%clk 0:00:12]}
37. Rb1 {[%clk 0:00:32.7]} 37... Rc2 {[%clk 0:00:13.3]} 38. Rf3 {[%clk
0:00:31.5]} 38... Ra7 {[%clk 0:00:14]} 39. Nd6 {[%clk 0:00:30.6]} 39... f5
{[%clk 0:00:08]} 40. g4 {[%clk 0:00:31.4]} 40... hxg4 {[%clk 0:00:07.7]} 41.
hxg4 {[%clk 0:00:32.7]} 41... fxg4 {[%clk 0:00:09.1]} 42. Rf4 {[%clk 0:00:32.7]}
42... Be5 {[%clk 0:00:09.5]} 43. Ne8+ {[%clk 0:00:33.5]} 43... Kg8 {[%clk
0:00:06.1]} 44. Re4 {[%clk 0:00:34.8]} 44... Bd4 {[%clk 0:00:06.6]} 45. Rxg4
{[%clk 0:00:32.5]} 45... Rxf2 {[%clk 0:00:06.7]} 46. Rxd4 {[%clk 0:00:33.2]}
46... cxd4 {[%clk 0:00:07.4]} 47. Kxf2 {[%clk 0:00:34.6]} 47... Kf7 {[%clk
0:00:03.9]} 48. Nd6+ {[%clk 0:00:35.5]} 48... Kf6 {[%clk 0:00:03.5]} 49. Kf3
{[%clk 0:00:32.1]} 49... Ke5 {[%clk 0:00:04.3]} 50. Nc4+ {[%clk 0:00:33.2]}
50... Kd5 {[%clk 0:00:05.6]} 51. Rg1 {[%clk 0:00:34.7]} 51... Rf7+ {[%clk
0:00:04.9]} 52. Ke2 {[%clk 0:00:35.5]} 52... Rf6 {[%clk 0:00:04.3]} 53. Rg5+
{[%clk 0:00:36.3]} 53... Ke4 {[%clk 0:00:03.3]} 54. Re5+ {[%clk 0:00:34.8]}
54... Kf4 {[%clk 0:00:04.6]} 55. Rb5 {[%clk 0:00:36.3]} 55... g5 {[%clk
0:00:05.4]} 56. Ne5 {[%clk 0:00:34.7]} 56... g4 {[%clk 0:00:04.2]} 57. Nd3+
{[%clk 0:00:36.2]} 57... Ke4 {[%clk 0:00:05]} 58. Re5# {[%clk 0:00:36.6]} 1-0